fUST/lending_fUST_20250405
["ID","MTS","AMOUNT","RATE_DAILY","PERIOD"]
[357176872,1743861037661,-1245.73,0.00019726,2]
[357176874,1743861037670,-500.0,0.00019726,2]
[357176876,1743861037679,-500.0,0.00019726,2]
[357176877,1743861037688,-2259.57,0.00019726,2]
[357176878,1743861037697,-500.0,0.00019726,2]
[357176880,1743861037707,-500.0,0.00019726,2]
[357176881,1743861037716,-500.0,0.00019726,2]
[357176882,1743861037726,-4020.06,0.00019726,2]
[357176883,1743861037735,-500.0,0.00019726,2]
[357176885,1743861037745,-500.0,0.00019726,2]
[357176886,1743861037755,-500.0,0.00019726,2]
[357176887,1743861037764,-500.0,0.00019726,2]
[357176889,1743861037773,-254.48097718,0.00019726,2]
[357176891,1743861037782,-962.68,0.00019726,2]
[357176892,1743861037791,-1394.62,0.00019726,2]
[357176893,1743861037800,-500.0,0.00019726,2]
[357176894,1743861037809,-500.0,0.00019726,2]
[357176895,1743861037821,-500.0,0.00019726,2]
[357176896,1743861037832,-500.0,0.00019726,2]
[357176897,1743861037841,-14067.93,0.00019726,2]
[357176898,1743861037850,-920.98,0.00019726,2]
[357176899,1743861037860,-500.0,0.00019726,2]
[357176901,1743861037872,-500.0,0.00019726,2]
[357176903,1743861037883,-1022.95,0.00019726,2]
[357176904,1743861037892,-500.0,0.00019726,2]
[357176906,1743861037903,-500.0,0.00019726,2]
[357176908,1743861037913,-500.0,0.00019726,2]
[357176910,1743861037922,-500.0,0.00019726,2]
[357176911,1743861037931,-500.0,0.00019726,2]
[357176913,1743861037940,-500.0,0.00019726,2]
[357176915,1743861037951,-500.0,0.00019726,2]
[357176916,1743861037960,-500.0,0.00019726,2]
[357176917,1743861037969,-797.72,0.00019726,2]
[357176918,1743861037979,-500.0,0.00019726,2]
[357176920,1743861037988,-500.0,0.00019726,2]
[357176921,1743861037997,-500.0,0.00019726,2]
[357176922,1743861038006,-500.0,0.00019726,2]
[357176923,1743861038015,-500.0,0.00019726,2]
[357176924,1743861038024,-510.47,0.00019726,2]
[357176925,1743861038032,-500.0,0.00019726,2]
[357176926,1743861038041,-2149.2,0.00019726,2]
[357176927,1743861038051,-621.57,0.00019726,2]
[357176928,1743861038061,-500.0,0.00019726,2]
[357176929,1743861038070,-500.39833797,0.00019773,2]
[357176930,1743861038079,-500.0,0.00019773,2]
[357176931,1743861038089,-587.0,0.00019917,2]
[357176932,1743861038097,-587.0,0.00019917,2]
[357176933,1743861038107,-1628.60266622,0.00019963,2]
[357176934,1743861038116,-649.23579722,0.0002,2]
[357176935,1743861038125,-513.88358344,0.0002,2]
[357176936,1743861038134,-500.0,0.0002,2]
[357176937,1743861038143,-500.0,0.0002,2]
[357176938,1743861038153,-500.0,0.0002,2]
[357176939,1743861038162,-500.0,0.0002,2]
[357176940,1743861038171,-500.0,0.0002,2]
[357176941,1743861038181,-500.0,0.0002,2]
[357176942,1743861038192,-500.0,0.0002,2]
[357176943,1743861038202,-500.0,0.0002,2]
[357176944,1743861038211,-500.0,0.0002,2]
[357176945,1743861038220,-500.0,0.0002,2]
[357176946,1743861038229,-345.32,0.0002,2]
[357176947,1743861038238,-500.0,0.0002,2]
[357176948,1743861038247,-876.05,0.0002,2]
[357176949,1743861038256,-500.0,0.0002,2]
[357176950,1743861038265,-500.0,0.0002,2]
[357176951,1743861038274,-500.0,0.0002,2]
[357176952,1743861038283,-500.0,0.0002,2]
[357176953,1743861038292,-500.0,0.0002,2]
[357176954,1743861038301,-500.0,0.0002,2]
[357176955,1743861038310,-500.0,0.0002,2]
[357176956,1743861038319,-500.0,0.0002,2]
[357176957,1743861038328,-500.0,0.0002,2]
[357176958,1743861038337,-500.0,0.0002,2]
[357176959,1743861038346,-500.0,0.0002,2]
[357176960,1743861038355,-500.0,0.0002,2]
[357176961,1743861038364,-221.60317429,0.0002,2]
[357176962,1743861038373,-536.58,0.0002,2]
[357176963,1743861038382,-983.09,0.0002,2]
[357176964,1743861038391,-500.0,0.0002,2]
[357176965,1743861038400,-500.0,0.0002,2]
[357176966,1743861038408,-500.0,0.0002,2]
[357176967,1743861038417,-2143.93,0.0002,2]
[357176968,1743861038426,-500.0,0.0002,2]
[357176969,1743861038435,-500.0,0.0002,2]
[357176970,1743861038444,-500.0,0.0002,2]
[357176971,1743861038453,-500.0,0.0002,2]
[357176972,1743861038461,-500.0,0.0002,2]
[357176973,1743861038471,-1663.92,0.0002,2]
[357176974,1743861038480,-500.0,0.0002,2]
[357176975,1743861038489,-500.0,0.0002,2]
[357176976,1743861038498,-2101.11,0.0002,2]
[357176977,1743861038507,-500.0,0.0002,2]
[357176978,1743861038516,-500.0,0.0002,2]
[357176979,1743861038525,-500.0,0.0002,2]
[357176980,1743861038534,-500.0,0.0002,2]
[357176981,1743861038543,-500.0,0.0002,2]
[357176982,1743861038552,-500.0,0.0002,2]
[357176983,1743861038562,-500.0,0.0002,2]
[357176984,1743861038571,-500.0,0.0002,2]
[357176985,1743861038579,-500.0,0.0002,2]
[357176986,1743861038589,-500.0,0.0002,2]
[357176987,1743861038598,-500.0,0.0002,2]
[357176988,1743861038607,-500.0,0.0002,2]
[357176989,1743861038616,-500.0,0.0002,2]
[357176990,1743861038625,-500.0,0.0002,2]
[357176991,1743861038634,-500.0,0.0002,2]
[357176992,1743861038644,-500.0,0.0002,2]
[357176993,1743861038653,-500.0,0.0002,2]
[357176994,1743861038664,-500.0,0.0002,2]
[357176995,1743861038673,-500.0,0.0002,2]
[357176996,1743861038682,-500.0,0.0002,2]
[357176997,1743861038691,-571.27,0.0002,2]
[357176998,1743861038700,-500.0,0.0002,2]
[357176999,1743861038709,-500.0,0.0002,2]
[357177000,1743861038719,-540.73,0.0002,2]
[357177001,1743861038728,-500.0,0.0002,2]
[357177002,1743861038737,-500.0,0.0002,2]
[357177003,1743861038746,-1136.71,0.0002,2]
[357177004,1743861038755,-500.0,0.0002,2]
[357177005,1743861038764,-500.0,0.0002,2]
[357177006,1743861038773,-500.0,0.0002,2]
[357177007,1743861038782,-1461.98,0.0002,2]
[357177008,1743861038791,-500.0,0.0002,2]
[357177009,1743861038800,-500.0,0.0002,2]
[357177010,1743861038810,-1262.37,0.0002,2]
[357177011,1743861038820,-500.0,0.0002,2]
[357177012,1743861038832,-500.0,0.0002,2]
[357177013,1743861038841,-500.0,0.0002,2]
[357177014,1743861038849,-500.0,0.0002,2]
[357177015,1743861038859,-500.0,0.0002,2]
[357177016,1743861038869,-200.0,0.0002,2]
[357177017,1743861038878,-833.42,0.0002,2]
[357177018,1743861038887,-500.0,0.0002,2]
[357177019,1743861038896,-3815.9,0.0002,2]
[357177020,1743861038908,-500.0,0.0002,2]
[357177021,1743861038918,-1548.21,0.0002,2]
[357177022,1743861038927,-1524.27,0.0002,2]
[357177023,1743861038936,-646.31,0.0002,2]
[357177024,1743861038945,-758.38,0.0002,2]
[357177025,1743861038954,-500.0,0.0002,2]
[357177026,1743861038963,-676.38,0.0002,2]
[357177027,1743861038972,-593.38,0.0002,2]
[357177028,1743861038981,-500.0,0.0002,2]
[357177029,1743861038991,-500.0,0.0002,2]
[357177030,1743861039001,-500.0,0.0002,2]
[357177031,1743861039010,-500.0,0.0002,2]
[357177032,1743861039019,-1245.73,0.0002,2]
[357177033,1743861039028,-500.0,0.0002,2]
[357177034,1743861039038,-500.0,0.0002,2]
[357177035,1743861039047,-2259.57,0.0002,2]
[357177036,1743861039056,-500.0,0.0002,2]
[357177037,1743861039065,-500.0,0.0002,2]
[357177038,1743861039074,-500.0,0.0002,2]
[357177039,1743861039083,-4020.06,0.0002,2]
[357177040,1743861039093,-500.0,0.0002,2]
[357177041,1743861039102,-500.0,0.0002,2]
[357177042,1743861039111,-500.0,0.0002,2]
[357177043,1743861039120,-500.0,0.0002,2]
[357177044,1743861039129,-962.68,0.0002,2]
[357177045,1743861039139,-1394.62,0.0002,2]
[357177046,1743861039147,-500.0,0.0002,2]
[357177047,1743861039156,-500.0,0.0002,2]
[357177048,1743861039166,-500.0,0.0002,2]
[357177049,1743861039178,-500.0,0.0002,2]
[357177050,1743861039192,-14067.93,0.0002,2]
[357177051,1743861039205,-920.98,0.0002,2]
[357177052,1743861039217,-500.0,0.0002,2]
[357177053,1743861039229,-500.0,0.0002,2]
[357177054,1743861039240,-1022.95,0.0002,2]
[357177055,1743861039250,-500.0,0.0002,2]
[357177056,1743861039260,-500.0,0.0002,2]
[357177057,1743861039269,-500.0,0.0002,2]
[357177058,1743861039278,-500.0,0.0002,2]
[357177059,1743861039287,-500.0,0.0002,2]
[357177060,1743861039296,-500.0,0.0002,2]
[357177061,1743861039305,-500.0,0.0002,2]
[357177062,1743861039314,-500.0,0.0002,2]
[357177063,1743861039324,-797.72,0.0002,2]
[357177064,1743861039333,-500.0,0.0002,2]
[357177065,1743861039342,-500.0,0.0002,2]
[357177066,1743861039351,-500.0,0.0002,2]
[357177067,1743861039360,-500.0,0.0002,2]
[357177068,1743861039369,-500.0,0.0002,2]
[357177069,1743861039379,-510.47,0.0002,2]
[357177070,1743861039388,-525.03818304,0.0002,2]
[357177071,1743861039397,-2149.2,0.0002,2]
[357177072,1743861039405,-621.57,0.0002,2]
[357177073,1743861039415,-500.0,0.0002,2]
[357177074,1743861039424,-7739.62052544,0.00020176,2]
[357177075,1743861039434,-500.93302561,0.00020273,2]
[357177076,1743861039443,-500.50504929,0.00020273,2]
[357177077,1743861039453,-526.70602061,0.00020273,2]
[357177078,1743861039462,-500.0,0.00020273,2]
[357177079,1743861039472,-527.42235697,0.00020273,2]
[357177080,1743861039481,-500.0,0.00020273,2]
[357177081,1743861039491,-500.0,0.00020273,2]
[357177082,1743861039500,-500.0,0.00020273,2]
[357177083,1743861039509,-500.0,0.00020273,2]
[357177084,1743861039519,-500.0,0.00020273,2]
[357177085,1743861039527,-500.0,0.00020273,2]
[357177086,1743861039536,-500.0,0.00020273,2]
[357177087,1743861039546,-500.0,0.00020273,2]
[357177088,1743861039555,-500.0,0.00020273,2]
[357177089,1743861039564,-500.0,0.00020273,2]
[357177090,1743861039574,-500.0,0.00020273,2]
[357177091,1743861039584,-500.0,0.00020273,2]
[357177092,1743861039599,-436.02425487,0.00020273,2]
[357177093,1743861039608,-500.0,0.00020273,2]
[357177094,1743861039617,-876.05,0.00020273,2]
[357177095,1743861039626,-500.0,0.00020273,2]
[357177096,1743861039636,-500.0,0.00020273,2]
[357177097,1743861039645,-500.0,0.00020273,2]
[357177098,1743861039653,-500.0,0.00020273,2]
[357177099,1743861039663,-500.0,0.00020273,2]
[357177100,1743861039673,-500.0,0.00020273,2]
[357177101,1743861039682,-500.0,0.00020273,2]
[357177102,1743861039691,-500.0,0.00020273,2]
[357177103,1743861039700,-500.0,0.00020273,2]
[357177105,1743861039815,-500.0,0.00020273,2]
[357177106,1743861039840,-500.0,0.00020273,2]
[357177108,1743861039850,-500.0,0.00020273,2]
[357177111,1743861039861,-536.58,0.00020273,2]
[357177114,1743861039871,-983.09,0.00020273,2]
[357177118,1743861039880,-500.0,0.00020273,2]
[357177120,1743861039890,-500.0,0.00020273,2]
[357177123,1743861039902,-500.0,0.00020273,2]
[357177126,1743861039912,-2143.93,0.00020273,2]
[357177128,1743861039923,-500.0,0.00020273,2]
[357177130,1743861039932,-500.0,0.00020273,2]
[357177132,1743861039942,-500.0,0.00020273,2]
[357177134,1743861039951,-500.0,0.00020273,2]
[357177136,1743861039960,-500.0,0.00020273,2]
[357177138,1743861039970,-1663.92,0.00020273,2]
[357177139,1743861039980,-500.0,0.00020273,2]
[357177140,1743861039990,-500.0,0.00020273,2]
[357177141,1743861039999,-2101.11,0.00020273,2]
[357177142,1743861040008,-500.0,0.00020273,2]
[357177143,1743861040018,-500.0,0.00020273,2]
[357177146,1743861040027,-500.0,0.00020273,2]
[357177147,1743861040036,-500.0,0.00020273,2]
[357177148,1743861040045,-500.0,0.00020273,2]
[357177149,1743861040054,-500.0,0.00020273,2]
[357177150,1743861040063,-500.0,0.00020273,2]
[357177151,1743861040073,-500.0,0.00020273,2]
[357177152,1743861040082,-605.91204958,0.00020273,2]
[357177153,1743861040093,-500.0,0.00020273,2]
[357177154,1743861040102,-500.0,0.00020273,2]
[357177155,1743861040111,-500.0,0.00020273,2]
[357177156,1743861040121,-435.84267295,0.00020273,2]
[357177157,1743861040130,-500.0,0.00020273,2]
[357177158,1743861040139,-500.0,0.00020273,2]
[357177159,1743861040149,-500.0,0.00020273,2]
[357177160,1743861040158,-500.0,0.00020273,2]
[357177161,1743861040167,-500.0,0.00020273,2]
[357177162,1743861040177,-500.0,0.00020273,2]
[357177163,1743861040186,-571.27,0.00020273,2]
[357177164,1743861040196,-500.0,0.00020273,2]
[357177165,1743861040205,-500.0,0.00020273,2]
[357177166,1743861040214,-540.73,0.00020273,2]
[357177167,1743861040224,-500.0,0.00020273,2]
[357177168,1743861040233,-500.0,0.00020273,2]
[357177169,1743861040243,-1136.71,0.00020273,2]
[357177170,1743861040251,-384.16933026,0.00020273,2]
[357177171,1743861040261,-500.0,0.00020273,2]
[357177172,1743861040271,-500.0,0.00020273,2]
[357177173,1743861040280,-1461.98,0.00020273,2]
[357177174,1743861040289,-500.0,0.00020273,2]
[357177175,1743861040298,-500.0,0.00020273,2]
[357177176,1743861040307,-1262.37,0.00020273,2]
[357177177,1743861040317,-500.0,0.00020273,2]
[357177178,1743861040326,-500.0,0.00020273,2]
[357177179,1743861040336,-500.0,0.00020273,2]
[357177180,1743861040346,-500.0,0.00020273,2]
[357177181,1743861040356,-500.0,0.00020273,2]
[357177182,1743861040366,-200.0,0.00020273,2]
[357177183,1743861040375,-833.42,0.00020273,2]
[357177184,1743861040385,-500.0,0.00020273,2]
[357177185,1743861040394,-3815.9,0.00020273,2]
[357177186,1743861040404,-500.0,0.00020273,2]
[357177187,1743861040414,-1548.21,0.00020273,2]
[357177188,1743861040424,-1524.27,0.00020273,2]
[357177189,1743861040433,-646.31,0.00020273,2]
[357177190,1743861040443,-758.38,0.00020273,2]
[357177191,1743861040452,-500.0,0.00020273,2]
[357177192,1743861040462,-676.38,0.00020273,2]
[357177194,1743861040472,-593.38,0.00020273,2]
[357177195,1743861040482,-500.0,0.00020273,2]
[357177196,1743861040492,-500.0,0.00020273,2]
[357177197,1743861040502,-500.0,0.00020273,2]
[357177198,1743861040512,-500.0,0.00020273,2]
[357177199,1743861040522,-1245.73,0.00020273,2]
[357177200,1743861040532,-500.0,0.00020273,2]
[357177201,1743861040541,-500.0,0.00020273,2]
[357177202,1743861040551,-2259.57,0.00020273,2]
[357177203,1743861040560,-500.0,0.00020273,2]
[357177204,1743861040569,-500.0,0.00020273,2]
[357177205,1743861040579,-193.21439111,0.00020273,2]
[357177206,1743861040588,-3438.89152093,0.00020273,2]
[357177207,1743861040734,-500.0,0.00020273,2]
[357177208,1743861040754,-500.0,0.00019178,2]
[357177209,1743861040763,-199.856,0.00019452,2]
[357177210,1743861040775,-300.144,0.00019452,2]
[357177211,1743861040784,-81.16847907,0.00020273,2]
[357177212,1743861040794,-500.0,0.00020273,2]
[357177213,1743861040803,-290.29407519,0.00020273,2]
[357177214,1743861041122,-500.0,0.00019178,2]
[357177215,1743861041132,-500.0,0.00019178,2]
[357177216,1743861041144,-4743.86248553,0.00019178,2]
[357177217,1743861041153,-500.0,0.00019452,2]
[357177218,1743861041163,-500.0,0.00019726,2]
[357177219,1743861041173,-246.64,0.00019726,2]
[357177220,1743861041182,-500.0,0.0002,2]
[357177221,1743861041192,-209.70592481,0.00020273,2]
[357177222,1743861041201,-500.0,0.00020273,2]
[357177223,1743861041210,-500.0,0.00020273,2]
[357177224,1743861041220,-962.68,0.00020273,2]
[357177225,1743861041229,-1394.62,0.00020273,2]
[357177226,1743861041239,-500.0,0.00020273,2]
[357177227,1743861041249,-500.0,0.00020273,2]
[357177228,1743861041258,-500.0,0.00020273,2]
[357177229,1743861041268,-500.0,0.00020273,2]
[357177230,1743861041278,-14067.93,0.00020273,2]
[357177231,1743861041287,-920.98,0.00020273,2]
[357177232,1743861041297,-500.0,0.00020273,2]
[357177233,1743861041307,-1022.95,0.00020273,2]
[357177234,1743861041316,-500.0,0.00020273,2]
[357177235,1743861041326,-500.0,0.00020273,2]
[357177236,1743861041336,-500.0,0.00020273,2]
[357177237,1743861041346,-500.0,0.00020273,2]
[357177238,1743861041356,-500.0,0.00020273,2]
[357177239,1743861041365,-500.0,0.00020273,2]
[357177240,1743861041375,-500.0,0.00020273,2]
[357177241,1743861041385,-500.0,0.00020273,2]
[357177242,1743861041394,-797.72,0.00020273,2]
[357177243,1743861041403,-500.0,0.00020273,2]
[357177244,1743861041412,-500.0,0.00020273,2]
[357177245,1743861041422,-500.0,0.00020273,2]
[357177246,1743861041431,-500.0,0.00020273,2]
[357177247,1743861041440,-495.61671406,0.00020273,2]
[357177248,1743861041450,-510.47,0.00020273,2]
[357177249,1743861041459,-2149.2,0.00020273,2]
[357177250,1743861041469,-621.57,0.00020273,2]
[357177251,1743861041478,-500.0,0.00020273,2]
[357177252,1743861041489,-500.0,0.00020273,2]
[357177253,1743861041499,-1453.52211511,0.00020348,2]
[357177254,1743861041507,-535.36,0.0002036,3]
[357177255,1743861041517,-419.20823938,0.00020409,2]
[357177256,1743861041526,-12522.71377557,0.00020409,2]
[357177257,1743861041536,-160.0,0.00020409,2]
[357177258,1743861041545,-160.0,0.0002041,2]
[357177259,1743861041554,-207.4,0.00020535,2]
[357177260,1743861041564,-160.0,0.00020546,2]
[357177261,1743861041573,-500.0,0.00020547,2]
[357177262,1743861041584,-500.0,0.00020547,2]
[357177263,1743861041594,-500.0,0.00020547,2]
[357177264,1743861041604,-563.3,0.00020547,2]
[357177265,1743861041613,-500.0,0.00020547,2]
[357177266,1743861041623,-500.0,0.00020547,2]
[357177267,1743861041633,-500.0,0.00020547,2]
[357177268,1743861041642,-500.0,0.00020547,2]
[357177269,1743861041652,-500.0,0.00020547,2]
[357177270,1743861041661,-500.0,0.00020547,2]
[357177271,1743861041671,-876.05,0.00020547,2]
[357177272,1743861041680,-500.0,0.00020547,2]
[357177273,1743861041690,-500.0,0.00020547,2]
[357177274,1743861041699,-500.0,0.00020547,2]
[357177275,1743861041709,-500.0,0.00020547,2]
[357177276,1743861041719,-500.0,0.00020547,2]
[357177277,1743861041729,-500.0,0.00020547,2]
[357177278,1743861041739,-500.0,0.00020547,2]
[357177279,1743861041749,-500.0,0.00020547,2]
[357177280,1743861041758,-500.0,0.00020547,2]
[357177281,1743861041768,-500.0,0.00020547,2]
[357177282,1743861041777,-500.0,0.00020547,2]
[357177283,1743861041787,-500.0,0.00020547,2]
[357177284,1743861041796,-536.58,0.00020547,2]
[357177285,1743861041806,-983.09,0.00020547,2]
[357177286,1743861041815,-500.0,0.00020547,2]
[357177287,1743861041826,-500.0,0.00020547,2]
[357177288,1743861041835,-500.0,0.00020547,2]
[357177289,1743861041844,-2143.93,0.00020547,2]
[357177290,1743861041854,-500.0,0.00020547,2]
[357177291,1743861041863,-500.0,0.00020547,2]
[357177292,1743861041872,-184.95,0.00020547,2]
[357177293,1743861041882,-500.0,0.00020547,2]
[357177294,1743861041892,-606.8,0.00020547,2]
[357177295,1743861041903,-1663.92,0.00020547,2]
[357177296,1743861041913,-500.0,0.00020547,2]
[357177297,1743861041923,-500.0,0.00020547,2]
[357177298,1743861041934,-2101.11,0.00020547,2]
[357177299,1743861041943,-500.0,0.00020547,2]
[357177300,1743861041953,-500.0,0.00020547,2]
[357177301,1743861041963,-500.0,0.00020547,2]
[357177302,1743861041973,-281.76,0.00020547,2]
[357177303,1743861041983,-500.0,0.00020547,2]
[357177304,1743861041993,-383.37604093,0.00020547,2]
[357177305,1743861042006,-116.62395907,0.00020547,2]
[357177306,1743861042015,-180.20563007,0.00020547,2]
[357177307,1743861042027,-319.79436993,0.00020547,2]
[357177308,1743861042037,-500.0,0.00020547,2]
[357177309,1743861042046,-500.0,0.00020547,2]
[357177310,1743861042056,-500.0,0.00020547,2]
[357177311,1743861042066,-500.0,0.00020547,2]
[357177312,1743861042075,-71.84331367,0.00020547,2]
[357177327,1743861044345,-500.0,0.00019178,2]
[357177328,1743861044355,-239.69813278,0.00019178,2]
[357177334,1743861044875,-420.09186722,0.00019178,2]
[357177335,1743861044885,-500.0,0.00019452,2]
[357177336,1743861044895,-659.79,0.00019452,2]
[357177337,1743861044905,-500.0,0.00019726,2]
[357177338,1743861044915,-659.79,0.00019726,2]
[357177339,1743861044924,-500.0,0.0002,2]
[357177340,1743861044934,-659.79,0.0002,2]
[357177341,1743861044944,-500.0,0.00020273,2]
[357177342,1743861044953,-428.15668633,0.00020547,2]
[357177343,1743861044963,-500.0,0.00020547,2]
[357177344,1743861044972,-500.0,0.00020547,2]
[357177345,1743861044982,-500.0,0.00020547,2]
[357177346,1743861044992,-439.14140334,0.00020547,2]
[357177347,1743861045002,-500.0,0.00020547,2]
[357177348,1743861045011,-500.0,0.00020547,2]
[357177349,1743861045021,-500.0,0.00020547,2]
[357177351,1743861045030,-500.0,0.00020547,2]
[357177353,1743861045040,-587.53626835,0.00020547,2]
[357177354,1743861045050,-500.0,0.00020547,2]
[357177355,1743861045059,-1461.98,0.00020547,2]
[357177356,1743861045068,-151.65033614,0.00020547,2]
[357177357,1743861045081,-348.34966386,0.00020547,2]
[357177358,1743861045090,-500.0,0.00020547,2]
[357177359,1743861045099,-1262.37,0.00020547,2]
[357177360,1743861045108,-500.0,0.00020547,2]
[357177361,1743861045118,-272.48033506,0.00020547,2]
[357177362,1743861045129,-227.51966494,0.00020547,2]
[357177363,1743861045138,-500.0,0.00020547,2]
[357177364,1743861045148,-500.0,0.00020547,2]
[357177365,1743861045157,-486.15668948,0.00020547,2]
[357177366,1743861045166,-182.32364558,0.00020547,2]
[357177367,1743861045181,-899.9,0.00019178,2]
[357177368,1743861045191,-17.67635442,0.00020547,2]
[357177369,1743861045200,-500.0,0.00020547,2]
[357177370,1743861045314,-1325.20065656,0.00020547,2]
[357177371,1743861045354,-2490.69934344,0.00020547,2]
[357177372,1743861045364,-500.0,0.00020547,2]
[357177373,1743861045373,-1548.21,0.00020547,2]
[357177374,1743861045383,-1524.27,0.00020547,2]
[357177375,1743861045393,-646.31,0.00020547,2]
[357177377,1743861045402,-758.38,0.00020547,2]
[357177378,1743861045412,-500.0,0.00020547,2]
[357177379,1743861045421,-676.38,0.00020547,2]
[357177380,1743861045430,-593.38,0.00020547,2]
[357177381,1743861045440,-500.0,0.00020547,2]
[357177382,1743861045449,-534.6364521,0.00020547,2]
[357177383,1743861045459,-500.0,0.00020547,2]
[357177384,1743861045468,-500.0,0.00020547,2]
[357177385,1743861045478,-1245.73,0.00020547,2]
[357177386,1743861045487,-500.0,0.00020547,2]
[357177387,1743861045497,-500.0,0.00020547,2]
[357177388,1743861045506,-2259.57,0.00020547,2]
[357177389,1743861045516,-500.0,0.00020547,2]
[357177390,1743861045525,-500.0,0.00020547,2]
[357177391,1743861045535,-4020.06,0.00020547,2]
[357177392,1743861045544,-500.0,0.00020547,2]
[357177393,1743861045553,-500.0,0.00020547,2]
[357177394,1743861045562,-500.0,0.00020547,2]
[357177395,1743861045572,-500.0,0.00020547,2]
[357177396,1743861045581,-962.68,0.00020547,2]
[357177397,1743861045591,-1394.62,0.00020547,2]
[357177398,1743861045601,-500.0,0.00020547,2]
[357177399,1743861045611,-500.0,0.00020547,2]
[357177400,1743861045620,-500.0,0.00020547,2]
[357177401,1743861045630,-500.0,0.00020547,2]
[357177402,1743861045639,-14067.93,0.00020547,2]
[357177403,1743861045649,-920.98,0.00020547,2]
[357177404,1743861045658,-500.0,0.00020547,2]
[357177405,1743861045667,-1022.95,0.00020547,2]
[357177406,1743861045676,-500.0,0.00020547,2]
[357177407,1743861045686,-500.0,0.00020547,2]
[357177408,1743861045697,-287.81,0.00020547,2]
[357177409,1743861045707,-500.0,0.00020547,2]
[357177410,1743861045716,-500.0,0.00020547,2]
[357177411,1743861045725,-500.0,0.00020547,2]
[357177413,1743861045735,-500.0,0.00020547,2]
[357177414,1743861045745,-500.0,0.00020547,2]
[357177415,1743861045755,-797.72,0.00020547,2]
[357177416,1743861045764,-500.0,0.00020547,2]
[357177417,1743861045774,-500.0,0.00020547,2]
[357177418,1743861045784,-500.0,0.00020547,2]
[357177419,1743861045794,-500.0,0.00020547,2]
[357177420,1743861045805,-510.47,0.00020547,2]
[357177421,1743861045815,-2149.2,0.00020547,2]
[357177422,1743861045828,-621.57,0.00020547,2]
[357177423,1743861045846,-500.0,0.00020547,2]
[357177424,1743861045856,-500.0,0.00020547,2]
[357177425,1743861045866,-500.0,0.00020547,2]
[357177426,1743861045875,-389.45631703,0.00020573,2]
[357177427,1743861045884,-640.58488957,0.00020573,2]
[357177428,1743861045894,-455.31302235,0.00020573,2]
[357177429,1743861045904,-548.912,0.0002058,2]
[357177430,1743861045913,-2265.0,0.0002058,2]
[357177431,1743861045923,-1478.0,0.0002058,2]